bitfinex/quotes_BTCUSD_20251114
["timestamp","ask_amount","ask_price","bid_price","bid_amount"]
[1763126282615,0.02042152,95165.0,95164.0,0.5331635]
[1763126282820,0.01942152,95165.0,95164.0,0.5331635]
[1763126283027,0.01942152,95165.0,95161.0,0.28805096]
[1763126283028,0.02626105,95198.0,95194.0,0.21009599]
[1763126283385,0.00972844,95197.0,95195.0,0.21009498]
[1763126283529,0.00972844,95196.0,95195.0,0.2100936]
[1763126283737,0.00972844,95196.0,95194.0,0.21009603]
[1763126283945,0.00972844,95195.0,95194.0,0.21009603]
[1763126284232,0.00986481,95195.0,95194.0,0.21009603]
[1763126284803,0.00986481,95195.0,95180.0,0.0105064]
[1763126285005,0.00972844,95194.0,95188.0,0.1381086]
[1763126285321,0.03211968,95193.0,95191.0,0.2101025]
[1763126285527,0.00972844,95192.0,95191.0,0.2101025]
[1763126286084,0.00972844,95192.0,95191.0,0.21010389]
[1763126286288,0.00972844,95192.0,95189.0,0.21010755]
[1763126286533,0.00972844,95191.0,95180.0,0.0105064]
[1763126286751,0.10479654,95181.0,95170.0,0.01050751]
[1763126286950,0.02335694,95180.0,95170.0,0.01050751]
[1763126287124,0.03599473,95179.0,95170.0,0.01050751]
[1763126287327,0.02700782,95178.0,95160.0,0.01050861]
[1763126287526,0.10479654,95166.0,95164.0,0.21016236]
[1763126287728,0.00972844,95165.0,95164.0,0.21016236]
[1763126288113,0.00972844,95165.0,95163.0,0.21016451]
[1763126288291,0.0359986,95165.0,95163.0,0.21016451]
[1763126288531,0.00972844,95164.0,95158.0,0.21017486]
[1763126288740,0.00972844,95163.0,95155.0,0.21018166]
[1763126288945,0.00972844,95162.0,95157.0,0.21017819]
[1763126289157,0.02627016,95165.0,95157.0,0.21017819]
[1763126289158,0.00972844,95161.0,95157.0,0.21017819]
[1763126289326,0.01972844,95160.0,95155.0,0.21018166]
[1763126289534,0.00972844,95159.0,95156.0,0.21018017]
[1763126289740,0.12,95157.0,95154.0,0.21018492]
[1763126289946,0.33272844,95156.0,95155.0,0.21018149]
[1763126290528,0.33272844,95156.0,95148.0,0.21019696]
[1763126290731,0.42779654,95149.0,95148.0,0.0001366]
[1763126290936,0.43752498,95149.0,95148.0,0.0001366]
[1763126291142,0.43752498,95149.0,95148.0,0.21033544]
[1763126291322,0.43752498,95149.0,95148.0,0.0001366]
[1763126292016,0.11452498,95149.0,95147.0,0.15333689]
[1763126292395,0.00972844,95148.0,95147.0,0.15333689]
[1763126293065,0.02119457,95148.0,95145.0,0.21020538]
[1763126293296,0.00972844,95147.0,95135.0,0.21022732]
[1763126293462,0.00972844,95147.0,95146.0,0.21020326]
[1763126293960,0.00972844,95147.0,95144.0,0.21020583]
[1763126294120,0.00972844,95146.0,95137.0,0.2102214]
[1763126294321,0.01,95140.0,95139.0,0.21021873]
[1763126294551,0.00972844,95140.0,95139.0,0.21021873]
[1763126295278,0.02918856,95140.0,95139.0,0.21021873]
[1763126295615,0.01946012,95140.0,95139.0,0.21021873]
[1763126295895,0.001,95147.0,95146.0,0.21020326]
[1763126296080,0.02045421,95147.0,95146.0,0.21020326]
[1763126296279,0.001,95147.0,95146.0,0.21020326]
[1763126296514,0.01945436,95147.0,95146.0,0.21020326]
[1763126296803,0.10486305,95149.0,95148.0,0.21019884]
[1763126296930,0.12432227,95149.0,95148.0,0.21019884]
[1763126298373,0.323,95148.0,95119.0,0.05662275]
[1763126298586,0.02918874,95147.0,95146.0,0.21020325]
[1763126298987,0.01945922,95147.0,95146.0,0.21020325]
[1763126299286,0.01945922,95147.0,95146.0,0.13820325]
[1763126299597,0.02918924,95147.0,95146.0,0.13820325]
[1763126300131,0.04269447,95147.0,95146.0,0.13820325]
[1763126300331,0.04269447,95147.0,95120.0,1.99767225]
[1763126300588,0.10479654,95134.0,95133.0,0.21023199]
[1763126301141,0.12425055,95134.0,95133.0,0.21023199]
[1763126302112,0.13397349,95134.0,95133.0,0.21023199]
[1763126302258,0.12425055,95134.0,95133.0,0.21023199]
[1763126302668,0.001,95147.0,95146.0,0.21020326]
[1763126302877,0.01944492,95148.0,95146.0,0.21020326]
[1763126303088,0.02627264,95156.0,95148.0,0.21019884]
[1763126303289,0.12,95157.0,95148.0,0.21019884]
[1763126303775,0.0001363,95149.0,95148.0,0.21019884]
[1763126306448,0.0001363,95149.0,95148.0,0.13619884]
[1763126307872,0.0001363,95149.0,95148.0,0.11595884]
[1763126309609,0.0001363,95149.0,95148.0,0.11695884]
[1763126309820,0.0001363,95149.0,95148.0,0.11595884]
[1763126311092,0.1027963,95149.0,95148.0,0.11595884]
[1763126311320,0.17080765,95149.0,95148.0,0.11595884]
[1763126311532,0.10493284,95149.0,95148.0,0.11595884]
[1763126311947,0.20759284,95149.0,95148.0,0.11595884]
[1763126312155,0.23386741,95149.0,95148.0,0.11595884]
[1763126312562,0.20759284,95149.0,95148.0,0.11595884]
[1763126312778,0.10493284,95149.0,95148.0,0.11595884]
[1763126313622,0.10493284,95149.0,95148.0,0.05595884]
[1763126314061,0.0001363,95149.0,95148.0,0.05595884]
[1763126314304,0.0001363,95149.0,95148.0,0.05695884]
[1763126314515,0.0001363,95149.0,95148.0,0.05595884]
[1763126314728,0.0430163,95149.0,95148.0,0.05595884]
[1763126314931,0.17386972,95149.0,95148.0,0.05595884]
[1763126315566,0.323,95148.0,95140.0,0.055268]
[1763126315692,0.10273,95141.0,95140.0,0.055268]
[1763126315912,0.42573,95141.0,95140.0,0.055268]
[1763126316465,0.4452353,95141.0,95140.0,0.055268]
[1763126316665,0.52212065,95141.0,95140.0,0.055268]
[1763126317993,0.52212065,95141.0,95120.0,1.98715922]
[1763126317994,0.42779654,95121.0,95120.0,1.98715922]
[1763126318196,0.53831184,95121.0,95120.0,1.98715922]
[1763126318366,0.54805269,95121.0,95120.0,1.98715922]
[1763126319119,0.61218596,95121.0,95120.0,1.98715922]
[1763126319764,0.61318596,95121.0,95120.0,1.98715922]
[1763126320168,0.61218596,95121.0,95120.0,1.98715922]
[1763126320596,0.61418596,95121.0,95120.0,1.98715922]
[1763126320791,0.61518596,95121.0,95120.0,1.8597256]
[1763126320987,0.61518596,95121.0,95120.0,1.7867256]
[1763126320988,0.46004269,95121.0,95120.0,1.7867256]
[1763126321145,0.52147269,95121.0,95120.0,1.7867256]
[1763126321347,0.52047269,95121.0,95120.0,1.7867256]
[1763126321795,0.51847269,95121.0,95120.0,1.7867256]
[1763126322063,0.58431196,95121.0,95120.0,1.7867256]
[1763126322268,0.51947269,95121.0,95120.0,1.7867256]
[1763126322609,0.51847269,95121.0,95120.0,1.7867256]
[1763126322816,0.51947269,95121.0,95120.0,1.7867256]
[1763126323016,0.45804269,95121.0,95120.0,1.7867256]
[1763126323481,0.52047269,95121.0,95120.0,1.7867256]
[1763126323682,0.51847269,95121.0,95120.0,1.7867256]
[1763126324068,0.51947269,95121.0,95120.0,1.7867256]
[1763126324479,0.45804269,95121.0,95120.0,1.7867256]
[1763126324863,0.45904269,95121.0,95120.0,1.7867256]
[1763126325287,0.44930184,95121.0,95120.0,1.7867256]
[1763126325503,0.44930184,95121.0,95120.0,1.99698632]
[1763126325719,0.44830184,95121.0,95120.0,1.99698632]
[1763126325963,0.44830184,95121.0,95120.0,1.7867256]
[1763126326176,0.44930184,95121.0,95120.0,1.7867256]
[1763126326383,0.44830184,95121.0,95120.0,1.7867256]
[1763126327027,0.44930184,95121.0,95120.0,1.7867256]
[1763126328096,0.44930184,95121.0,95120.0,1.7087256]
[1763126328757,0.10679654,95121.0,95120.0,1.7087256]
[1763126328999,0.52137318,95121.0,95120.0,1.7087256]
[1763126329248,0.42979654,95121.0,95120.0,1.7087256]
[1763126329503,0.42879654,95121.0,95120.0,1.7087256]
[1763126329770,0.4482766,95121.0,95120.0,1.7087256]
[1763126329999,0.10579654,95121.0,95120.0,1.7087256]
[1763126330928,0.10479654,95121.0,95120.0,1.7087256]
[1763126332113,0.02627734,95139.0,95138.0,0.21022094]
[1763126332310,0.04574578,95139.0,95120.0,1.7087256]
[1763126332529,0.77667763,95130.0,95129.0,0.21024083]
[1763126332731,0.42779654,95130.0,95120.0,1.7087256]
[1763126332982,0.0262801,95129.0,95128.0,0.21024304]
[1763126333359,0.323,95130.0,95128.0,0.21024304]
[1763126333782,0.13107664,95129.0,95128.0,0.21024304]
[1763126334103,0.13107664,95129.0,95127.0,0.2102441]
[1763126334883,0.13107664,95129.0,95127.0,0.2102442]
[1763126335233,0.10479654,95129.0,95127.0,0.1442442]
[1763126335447,0.323,95128.0,95127.0,0.1442442]
[1763126335859,0.38443,95128.0,95127.0,0.1442442]
[1763126336337,0.323,95128.0,95127.0,0.1442442]
[1763126337067,0.323,95128.0,95125.0,0.2102451]
[1763126337305,0.323,95128.0,95101.0,0.31545126]
[1763126337306,0.323,95125.0,95101.0,0.31545126]
[1763126337532,0.10807,95126.0,95090.0,0.01091635]
[1763126337533,0.42772,95121.0,95090.0,0.01091635]
[1763126337730,0.44718988,95121.0,95119.0,0.21026199]
[1763126338287,0.44718988,95121.0,95119.0,0.21026187]
[1763126338450,0.44718988,95121.0,95108.0,0.21028617]
[1763126338660,0.44718988,95121.0,95119.0,0.2102616]
[1763126338856,0.44718988,95121.0,95119.0,0.21026133]
[1763126340770,0.44718827,95121.0,95119.0,0.21026133]
[1763126341019,0.44818827,95121.0,95119.0,0.21026133]
[1763126341442,0.44718827,95121.0,95119.0,0.21026133]
[1763126341658,0.5064112,95121.0,95113.0,0.21027426]
[1763126341889,0.5064112,95121.0,95100.0,0.01191524]
[1763126341890,0.45792837,95121.0,95116.0,0.21026804]
[1763126342122,0.03020837,95121.0,95120.0,1.91898632]
[1763126342365,0.01946827,95121.0,95120.0,1.91898632]
[1763126342567,0.10479654,95129.0,95120.0,1.91898632]
[1763126342568,0.10479654,95129.0,95128.0,0.21024304]
[1763126342782,0.0194834,95129.0,95128.0,0.21024304]
[1763126342981,0.0194834,95129.0,95128.0,0.13224304]
[1763126343856,0.0803534,95129.0,95128.0,0.13224304]
[1763126344715,0.4033534,95129.0,95128.0,0.13224304]
[1763126345175,0.323,95128.0,95120.0,1.7087256]
[1763126345311,0.42635,95121.0,95120.0,1.7087256]
[1763126345493,0.4458334,95121.0,95120.0,1.7087256]
[1763126345900,0.45558563,95121.0,95120.0,1.7087256]
[1763126346749,0.45558563,95121.0,95120.0,1.91898632]
[1763126346955,0.45558563,95121.0,95120.0,1.7087256]
[1763126347320,0.45658563,95121.0,95120.0,1.7087256]
[1763126347527,0.45558563,95121.0,95120.0,1.7087256]
[1763126347974,0.45658563,95121.0,95120.0,1.7087256]
[1763126348379,0.35323563,95121.0,95120.0,1.91898632]
[1763126349535,0.3434834,95121.0,95120.0,1.91898632]
[1763126349758,0.3424834,95121.0,95120.0,1.91898632]
[1763126350214,0.3434834,95121.0,95120.0,1.84098632]
[1763126350621,0.3434834,95121.0,95120.0,1.6307256]
[1763126350828,0.3424834,95121.0,95120.0,1.6307256]
[1763126351280,0.34232377,95121.0,95120.0,1.6307256]
[1763126353745,0.34232377,95121.0,95120.0,1.6317256]
[1763126354400,0.0195246,95121.0,95120.0,1.84198632]
[1763126355277,0.0195246,95121.0,95120.0,1.84098632]
[1763126356610,0.0195246,95121.0,95120.0,1.5746056]
[1763126356830,0.0195246,95121.0,95120.0,0.4938802]
[1763126356831,0.41605134,95121.0,95120.0,0.4938802]
[1763126357045,0.48199981,95121.0,95120.0,0.3938802]
[1763126357256,0.47222307,95121.0,95120.0,0.38360505]
[1763126357467,0.48199701,95121.0,95120.0,0.34260505]
[1763126357636,0.37482827,95121.0,95120.0,0.34260505]
[1763126357830,0.35229854,95121.0,95120.0,0.34260505]
[1763126358579,0.03329854,95121.0,95120.0,0.34260505]
[1763126359203,0.03328564,95121.0,95120.0,0.34160505]
[1763126359404,0.0235246,95121.0,95120.0,0.34160505]
[1763126359577,0.0265246,95121.0,95120.0,0.34160505]
[1763126360023,0.0235246,95121.0,95120.0,0.34160505]
[1763126360825,0.0195246,95121.0,95120.0,0.34160505]
[1763126361062,0.04580691,95121.0,95120.0,0.34160505]
[1763126361179,0.04780691,95121.0,95120.0,0.34160505]
[1763126361669,0.04580691,95121.0,95120.0,0.34160505]
[1763126362180,0.0195246,95121.0,95120.0,0.34160505]
[1763126362863,0.0205246,95121.0,95120.0,0.34160505]
[1763126364039,0.0195246,95121.0,95120.0,0.34160505]
[1763126364501,0.0195246,95121.0,95120.0,0.27060505]
[1763126365682,0.02628038,95128.0,95120.0,0.27060505]
[1763126365683,0.02628038,95128.0,95121.0,0.21025851]
[1763126365903,0.02628038,95128.0,95120.0,0.27060505]
[1763126365904,0.01953218,95127.0,95120.0,0.27060505]
[1763126366109,0.04581311,95126.0,95122.0,0.21025549]
[1763126366309,0.01953218,95125.0,95122.0,0.21025549]
[1763126366529,0.01953218,95124.0,95123.0,0.09054]
[1763126367113,0.05557423,95124.0,95123.0,0.09054]
[1763126367246,0.02929275,95124.0,95123.0,0.09054]
[1763126368084,0.02053218,95124.0,95123.0,0.09054]
[1763126369345,0.03030965,95124.0,95123.0,0.09054]
[1763126370075,0.02053972,95124.0,95123.0,0.09054]
[1763126370288,0.03031327,95124.0,95123.0,0.09054]
[1763126370913,0.02053972,95124.0,95123.0,0.09054]
[1763126371124,0.03031512,95124.0,95123.0,0.09054]
[1763126371363,0.02053972,95124.0,95123.0,0.09054]
[1763126371592,0.03031759,95124.0,95123.0,0.05354]
[1763126371805,0.03031759,95124.0,95121.0,0.21025672]
[1763126371983,0.01953972,95123.0,95121.0,0.21025672]
[1763126373329,0.01953972,95123.0,95120.0,0.27060505]
[1763126373330,0.03627982,95130.0,95126.0,0.21024693]
[1763126373448,0.02934906,95129.0,95128.0,0.21024229]
[1763126373888,0.02934906,95129.0,95123.0,0.21025387]
[1763126374094,0.05562944,95128.0,95123.0,0.21025387]
[1763126374289,0.02934906,95127.0,95121.0,0.27325663]
[1763126374493,0.05562999,95126.0,95121.0,0.063]
[1763126374754,0.02934906,95125.0,95122.0,0.2102563]
[1763126374883,0.05563891,95124.0,95120.0,0.27060505]
[1763126375138,0.02935743,95123.0,95120.0,0.27060505]
[1763126375293,0.05563946,95122.0,95120.0,0.27060505]
[1763126375498,0.02935743,95121.0,95120.0,0.27060505]
[1763126376580,0.05448582,95121.0,95120.0,0.27060505]
[1763126377420,0.05648582,95121.0,95120.0,0.27060505]
[1763126377648,0.03235743,95121.0,95120.0,0.27060505]
[1763126378066,0.03035743,95121.0,95120.0,0.27060505]
[1763126378278,0.03035743,95121.0,95120.0,0.48086577]
[1763126378902,0.03035743,95121.0,95120.0,0.43886577]
[1763126379122,0.02935743,95121.0,95120.0,0.43886577]
[1763126379315,0.03235743,95121.0,95120.0,0.43886577]
[1763126379811,0.03035743,95121.0,95120.0,0.43886577]
[1763126380246,0.03135743,95121.0,95120.0,0.43886577]
[1763126381240,0.02156604,95121.0,95120.0,0.43886577]
[1763126381456,0.02159356,95121.0,95120.0,0.43886577]
[1763126384196,0.323,95144.0,95120.0,0.43886577]
[1763126384197,0.5846354,95160.0,95148.0,0.21019884]
[1763126384366,0.35535963,95159.0,95148.0,0.27104884]
[1763126384567,0.00993022,95149.0,95148.0,0.33386884]
[1763126384792,0.00993022,95149.0,95148.0,0.21019884]
[1763126384997,0.00993022,95149.0,95148.0,0.22517339]
[1763126385198,0.00993022,95149.0,95148.0,0.21019884]
[1763126385695,0.00993022,95149.0,95147.0,0.03141]
[1763126385894,0.0001363,95149.0,95148.0,0.06282]
[1763126386021,0.01092852,95149.0,95148.0,0.06282]
[1763126386220,0.03620309,95149.0,95147.0,0.01623]
[1763126386425,0.00979222,95148.0,95147.0,0.01623]
[1763126387450,0.00981146,95148.0,95147.0,0.01623]
[1763126387865,0.01181146,95148.0,95147.0,0.01623]
[1763126389043,0.01,95130.0,95120.0,0.22860505]
[1763126389251,0.00981146,95129.0,95120.0,0.43886474]
[1763126389738,0.00981146,95129.0,95127.0,0.21024498]
[1763126389906,0.0098132,95136.0,95134.0,0.21022946]
[1763126390119,0.3231363,95149.0,95137.0,0.21022315]
[1763126390379,0.3231363,95149.0,95121.0,0.2102579]
[1763126390380,0.001,95130.0,95125.0,0.2102476]
[1763126390590,0.00981508,95129.0,95128.0,0.24165271]
[1763126390792,0.00981508,95129.0,95128.0,0.03141]
[1763126391564,0.03609518,95129.0,95128.0,0.03141]
[1763126392126,0.42073518,95129.0,95120.0,0.22860505]
[1763126392333,0.08618,95121.0,95120.0,0.22860505]
[1763126392551,0.46241382,95121.0,95120.0,0.22860505]
[1763126392936,0.48498888,95121.0,95120.0,0.22860505]
[1763126393550,0.48798888,95121.0,95120.0,0.07820063]
[1763126393898,0.48498888,95121.0,95120.0,0.06792837]
[1763126394330,0.48798888,95121.0,95120.0,0.06792837]
[1763126394883,0.48998888,95121.0,95120.0,0.06792837]
[1763126395299,0.48798888,95121.0,95120.0,0.06792837]
[1763126395738,0.48798888,95121.0,95110.0,0.0004]
[1763126395739,0.40641872,95120.0,95110.0,0.0004]
[1763126395944,0.42507874,95111.0,95110.0,0.0004]
[1763126396163,0.47702564,95111.0,95110.0,0.0004]
[1763126396371,0.51446938,95111.0,95110.0,0.0004]
[1763126396606,0.47900564,95111.0,95110.0,0.0004]
[1763126396811,0.51653853,95111.0,95110.0,0.0004]
[1763126397022,0.51663398,95111.0,95110.0,0.0004]
[1763126397232,0.47910109,95111.0,95110.0,0.0004]
[1763126397447,0.51663398,95111.0,95110.0,0.0004]
[1763126397661,0.48310109,95111.0,95110.0,0.0004]
[1763126398134,0.52063398,95111.0,95110.0,0.0004]
[1763126398343,0.48307597,95111.0,95110.0,0.0004]
[1763126398560,0.48607597,95111.0,95110.0,0.0004]
[1763126398776,0.47907597,95111.0,95110.0,0.0004]
[1763126399216,0.48607597,95111.0,95110.0,0.0004]
[1763126399447,0.48607597,95111.0,95100.0,0.0014]
[1763126399448,1.78568951,95110.0,95100.0,0.0014]
[1763126399650,0.47183874,95101.0,95100.0,0.0014]
[1763126399863,0.52376052,95101.0,95100.0,0.0014]
[1763126400311,0.54025796,95101.0,95100.0,0.0014]
[1763126400745,0.54025796,95101.0,95080.0,0.0004]
[1763126400746,0.323,95100.0,95080.0,0.08417]
[1763126400954,0.323,95089.0,95081.0,0.29451606]
[1763126401149,0.02934672,95088.0,95081.0,0.08417]
[1763126401393,0.02934672,95088.0,95076.0,0.04177]
[1763126401394,0.02934672,95087.0,95086.0,0.21033572]
[1763126401603,0.02934672,95087.0,95083.0,0.21034254]
[1763126401844,0.02934672,95086.0,95084.0,0.08417]
[1763126402094,0.5976354,95100.0,95098.0,0.21030936]
[1763126402315,0.05068611,95099.0,95098.0,0.21030936]
[1763126402751,0.02922042,95099.0,95098.0,0.21030936]
[1763126402958,0.02922042,95099.0,95097.0,0.21030927]
[1763126403187,0.01948028,95098.0,95097.0,0.21031066]
[1763126404231,0.02628038,95128.0,95127.0,0.21024525]
[1763126404400,0.0292104,95128.0,95127.0,0.06018]
[1763126404746,0.0292104,95128.0,95126.0,0.03062]
[1763126404948,0.05088071,95127.0,95126.0,0.03062]
[1763126405150,0.0509764,95127.0,95126.0,0.03062]
[1763126405378,0.09439514,95127.0,95126.0,0.03062]
[1763126405634,0.04341874,95119.0,95104.0,0.01359]
[1763126405789,0.323,95113.0,95104.0,0.01359]
[1763126406002,0.05285364,95112.0,95104.0,0.01359]
[1763126406206,0.0292104,95111.0,95104.0,0.01359]
[1763126406447,0.09891449,95110.0,95104.0,0.01359]
[1763126406651,0.09891449,95110.0,95091.0,0.08417]
[1763126406652,0.04341874,95108.0,95091.0,0.08417]
[1763126406784,0.5846354,95101.0,95091.0,0.08417]
[1763126406988,0.05549851,95100.0,95091.0,0.08417]
[1763126407234,0.0292104,95099.0,95091.0,0.08417]
[1763126407434,0.04576227,95098.0,95091.0,0.08417]
[1763126407648,0.04576227,95098.0,95088.0,0.03062]
[1763126407649,0.01,95090.0,95088.0,0.03062]
[1763126407799,0.0194736,95089.0,95088.0,0.01362]
[1763126408010,0.04705025,95089.0,95088.0,0.01362]
[1763126408212,0.05550329,95089.0,95088.0,0.01362]
[1763126408642,0.09892203,95089.0,95088.0,0.01407524]
[1763126408846,0.09892203,95089.0,95088.0,0.00045524]
[1763126409447,0.07263088,95089.0,95088.0,0.00045524]
[1763126409660,0.07463088,95089.0,95088.0,0.00045524]
[1763126409867,0.09816579,95089.0,95088.0,0.00045524]
[1763126410073,0.09616579,95089.0,95088.0,0.00045524]
[1763126410484,0.09916579,95089.0,95088.0,0.00045524]
[1763126411318,0.09847429,95089.0,95088.0,0.00045524]
[1763126411745,0.05505555,95089.0,95088.0,0.00045524]
[1763126411992,0.05505555,95089.0,95088.0,0.06762524]
[1763126412827,0.05205555,95089.0,95088.0,0.06762524]
[1763126413293,0.05505555,95089.0,95088.0,0.00045524]
[1763126413765,0.03221214,95089.0,95088.0,0.00045524]
[1763126413961,0.05850329,95089.0,95088.0,0.00045524]
[1763126414207,0.05950329,95089.0,95088.0,0.00045524]
[1763126414416,0.05850329,95089.0,95088.0,0.00045524]
[1763126414842,0.03021214,95089.0,95087.0,0.19578829]
[1763126415008,0.0194736,95088.0,95087.0,0.19578829]
[1763126415188,0.02920823,95088.0,95084.0,0.21033941]
[1763126415398,0.04424806,95087.0,95084.0,0.21033945]
[1763126415599,0.0194736,95086.0,95085.0,0.27750679]
[1763126415799,0.0194736,95086.0,95085.0,0.21033679]
[1763126416798,0.0214736,95086.0,95085.0,0.21033679]
[1763126417888,0.0214736,95086.0,95085.0,0.2515574]
[1763126418093,0.323,95119.0,95076.0,0.04177]
[1763126418094,0.02246823,95118.0,95109.0,0.21028504]
[1763126418326,0.00975571,95117.0,95115.0,0.21027048]
[1763126418583,0.00975571,95116.0,95115.0,0.21036593]
[1763126418793,0.02153936,95116.0,95115.0,9.545e-05]
[1763126419000,0.00975571,95116.0,95115.0,9.545e-05]
[1763126419206,0.002,95118.0,95115.0,9.545e-05]
[1763126419399,0.00975571,95117.0,95115.0,9.545e-05]
[1763126419621,0.00975571,95117.0,95116.0,0.0272]
[1763126420024,0.00975571,95117.0,95115.0,9.545e-05]
[1763126420025,0.04341874,95116.0,95115.0,9.545e-05]
[1763126420229,0.05317445,95116.0,95115.0,9.545e-05]
[1763126420789,0.00976272,95116.0,95115.0,9.545e-05]
[1763126421391,0.00977305,95116.0,95115.0,9.545e-05]
[1763126421589,0.003,95116.0,95115.0,0.06726545]
[1763126421795,0.01177305,95116.0,95115.0,0.06726545]
[1763126422003,0.01177305,95116.0,95113.0,0.21027523]
[1763126422226,0.0215567,95115.0,95114.0,0.21027231]
[1763126422422,0.00977305,95115.0,95114.0,0.21027231]
[1763126422855,0.00977305,95115.0,95108.0,0.0272]
[1763126423062,0.01,95110.0,95108.0,0.0272]
[1763126423445,0.00977305,95109.0,95108.0,0.0272]
[1763126423655,0.0215567,95109.0,95108.0,0.0272]
[1763126424837,0.00977305,95109.0,95108.0,0.0272]
[1763126425049,0.0215567,95109.0,95108.0,0.0272]
[1763126425725,0.04341874,95108.0,95102.0,0.0272]
[1763126425938,0.03672,95103.0,95097.0,0.0272]
[1763126426145,0.0215567,95102.0,95097.0,0.0272]
[1763126426329,0.00977305,95101.0,95097.0,0.0272]
[1763126426476,0.01178365,95100.0,95097.0,0.0272]
[1763126426677,0.01178365,95100.0,95076.0,0.04177]
[1763126426678,0.01,95080.0,95079.0,0.21035139]
[1763126426879,0.01977305,95080.0,95079.0,0.21035139]
[1763126427078,0.00977305,95080.0,95079.0,0.21035139]
[1763126427291,0.01,95090.0,95089.0,0.21032836]
[1763126427495,0.01977739,95090.0,95089.0,0.21032836]
[1763126427920,0.0098922,95090.0,95089.0,0.21032836]
[1763126428364,0.0098922,95090.0,95087.0,0.21033246]
[1763126428365,0.0098922,95090.0,95087.0,0.06717]
[1763126428573,0.02156104,95089.0,95080.0,0.21034775]
[1763126428766,0.01,95080.0,95077.0,0.06717]
[1763126428983,0.00977739,95079.0,95072.0,0.21036598]
[1763126429190,0.00977739,95078.0,95076.0,0.00177]
[1763126429345,0.00977739,95077.0,95076.0,0.21212676]
[1763126429551,0.00977924,95077.0,95076.0,0.00177]
[1763126429746,0.00977924,95077.0,95076.0,0.21212636]
[1763126429950,0.01956266,95077.0,95076.0,0.00177]
[1763126430298,0.00977924,95077.0,95076.0,0.00177]
[1763126430507,0.01956266,95077.0,95076.0,0.00177]
[1763126430710,0.00977924,95077.0,95076.0,0.00177]
[1763126430916,0.0293419,95082.0,95076.0,0.00177]
[1763126431138,0.0293419,95081.0,95076.0,0.00177]
[1763126431365,0.002,95077.0,95076.0,0.00177]
[1763126431570,0.0313419,95077.0,95076.0,0.00177]
[1763126431997,0.0293419,95077.0,95076.0,0.00177]
[1763126432225,0.0293419,95077.0,95076.0,0.02894]
[1763126433105,0.0313419,95077.0,95076.0,0.02894]
[1763126434325,0.0293419,95077.0,95076.0,0.02894]
[1763126434734,0.0303419,95077.0,95076.0,0.02894]
[1763126435276,0.02056266,95077.0,95076.0,0.02894]
[1763126435769,0.03036127,95077.0,95076.0,0.02894]
[1763126436183,0.00011481,95090.0,95089.0,0.21032927]
[1763126436410,0.00011481,95090.0,95089.0,0.24749927]
[1763126436545,0.00011481,95090.0,95089.0,0.04]
[1763126436744,0.00991707,95090.0,95089.0,0.04]
[1763126437810,0.01191707,95090.0,95089.0,0.04]
[1763126438370,0.00991707,95090.0,95089.0,0.04]
[1763126438618,0.00991707,95090.0,95089.0,0.06717]
[1763126438816,0.01191707,95090.0,95089.0,0.06717]
[1763126439546,0.02191707,95090.0,95089.0,0.04]
[1763126439784,0.02191707,95090.0,95059.0,0.14417]
[1763126439785,0.07223945,95090.0,95059.0,0.14417]
[1763126439982,0.5846354,95086.0,95059.0,0.14417]
[1763126440259,0.04412334,95085.0,95059.0,0.14417]
[1763126440466,0.323,95076.0,95059.0,0.117]
[1763126440680,0.42673874,95071.0,95059.0,0.117]
[1763126440878,0.45907843,95071.0,95059.0,0.117]
[1763126441078,0.36641874,95068.0,95059.0,0.117]
[1763126441294,0.44694874,95060.0,95059.0,0.117]
[1763126441509,0.47928843,95060.0,95059.0,0.117]
[1763126442526,0.48940318,95060.0,95059.0,0.117]
[1763126443837,0.48540318,95060.0,95059.0,0.117]
[1763126443994,0.48539989,95060.0,95059.0,0.089]
[1763126444347,0.5416759,95060.0,95059.0,0.089]
[1763126444574,0.5376759,95060.0,95059.0,0.089]
[1763126444780,0.48139989,95060.0,95059.0,0.089]
[1763126444987,0.48539989,95060.0,95059.0,0.089]
[1763126445199,0.56559763,95060.0,95059.0,0.08461081]
[1763126445407,0.48539989,95060.0,95059.0,0.08461081]
[1763126445613,0.48339989,95060.0,95059.0,0.08461081]
[1763126446020,0.48539989,95060.0,95059.0,0.08461081]
[1763126446226,0.48339989,95060.0,95059.0,0.08461081]
[1763126446431,0.49339989,95060.0,95059.0,0.08461081]
[1763126446635,0.47939989,95060.0,95059.0,0.08461081]
[1763126446834,0.47640288,95060.0,95059.0,0.08461081]
[1763126447110,0.44398115,95060.0,95059.0,0.08461081]
[1763126447490,0.47939989,95060.0,95059.0,0.08461081]
[1763126447703,0.49339989,95060.0,95059.0,0.08461081]
[1763126447946,0.53077968,95060.0,95059.0,0.08461081]
[1763126448152,0.48939989,95060.0,95059.0,0.08461081]
[1763126448362,0.04341874,95059.0,95050.0,0.0004]
[1763126448571,0.42635874,95051.0,95050.0,0.0004]
[1763126448777,0.47817128,95051.0,95050.0,0.0004]
[1763126450022,0.47817128,95051.0,95043.0,0.0004]
[1763126450023,0.39641871,95050.0,95043.0,0.0004]
[1763126450229,0.36641874,95029.0,95020.0,0.0007]
[1763126450443,0.42597874,95021.0,95020.0,0.0007]
[1763126450654,0.45525952,95021.0,95020.0,0.0007]
[1763126451300,0.38641873,95020.0,95000.0,10.052827]
[1763126451510,0.323,95009.0,95000.0,10.05328218]
[1763126451716,0.04341874,95008.0,95000.0,10.05328218]
[1763126451921,0.04341874,95006.0,95000.0,10.05328218]
[1763126452129,0.04341874,95004.0,95000.0,10.05328218]
[1763126452369,0.04341874,95002.0,95000.0,10.05328218]
[1763126452602,0.38589488,95001.0,95000.0,10.05328218]
[1763126452826,0.13291991,95001.0,95000.0,10.05328218]
[1763126453042,0.07259991,95001.0,95000.0,10.05328218]
[1763126453254,0.02918117,95001.0,95000.0,10.05328218]
[1763126453468,0.13291991,95001.0,95000.0,10.05328218]
[1763126454315,0.13591991,95001.0,95000.0,10.05328218]
[1763126454979,0.13791991,95001.0,95000.0,10.05328218]
[1763126457753,0.16026122,95001.0,95000.0,10.05328218]
[1763126458363,0.16026122,95001.0,95000.0,9.97428218]
[1763126458997,0.17204487,95001.0,95000.0,9.97428218]
[1763126459408,0.11172487,95001.0,95000.0,9.97428218]
[1763126460848,0.17833487,95001.0,95000.0,9.97428218]
[1763126461494,2.11172487,95001.0,95000.0,9.35398407]
[1763126461709,0.55488413,95001.0,95000.0,9.32234354]
[1763126461928,0.52120089,95001.0,95000.0,9.29070301]
[1763126462143,0.51820089,95001.0,95000.0,9.29070301]
[1763126462350,0.48455122,95001.0,95000.0,9.29070301]
[1763126462613,0.42194122,95001.0,95000.0,9.29070301]
[1763126462852,0.49198122,95001.0,95000.0,9.29070301]
[1763126463061,0.48398122,95001.0,95000.0,9.29070301]
[1763126463277,0.49298122,95001.0,95000.0,9.29070301]